Workbook

Sheet 汇总
A1: 剑河县教育系统2023年招聘公办幼儿园专任教师成绩一览表
A2: 准考证号 | B2: 姓名 | C2: 报考岗位 | D2: 面试成绩 | E2: 加分项 | H2: 加分小计（加分各项累计加分不超过1分） | I2: 总成绩
E3: 专业为学前教育、幼师、幼儿师范、幼儿园教育、幼儿艺体教育、学前辅导与保育、学前教育学的在总分上加0.5分 | F3: 教师资格证为幼儿园教师资格的在总分上加0.5分 | G3: 县聘编外幼儿教师（含志愿者）在我县公办幼儿园从事幼教工作5年以上（含5年）在总分上加1分
A4: 20230001 | B4: 蔡明芬 | C4: 岑松镇 | D4: 74.12 | E4: √ | F4: √ | H4: 1 | I4: =D4+H4 -> 75.12
A5: 20230002 | B5: 曾明艳 | C5: 岑松镇 | D5: 75.52 | E5: √ | F5: √ | H5: 1 | I5: =D5+H5 -> 76.52
A6: 20230004 | B6: 邓艳 | C6: 岑松镇 | D6: 79.1 | E6: √ | F6: √ | H6: 1 | I6: 80.1
A7: 20230005 | B7: 杜青 | C7: 岑松镇 | D7: 74.33 | E7: √ | F7: √ | H7: 1 | I7: 75.33
A8: 20230006 | B8: 龚雨涵 | C8: 岑松镇 | D8: 75.42 | E8: √ | F8: √ | H8: 1 | I8: 76.42
A9: 20230007 | B9: 胡双桃 | C9: 岑松镇 | D9: 70.12 | H9: 0 | I9: 70.12
A10: 20230008 | B10: 黄芬 | C10: 岑松镇 | D10: 75.86 | E10: √ | F10: √ | H10: 1 | I10: 76.86
A11: 20230009 | B11: 黄玖玖 | C11: 岑松镇 | D11: 75.04 | E11: √ | F11: √ | H11: 1 | I11: 76.04
A12: 20230011 | B12: 姜菲 | C12: 岑松镇 | D12: 74 | E12: √ | F12: √ | H12: 1 | I12: 75
A13: 20230013 | B13: 姜锡梅 | C13: 岑松镇 | D13: 缺考
A14: 20230014 | B14: 蒋天玉 | C14: 岑松镇 | D14: 缺考
A15: 20230015 | B15: 雷萌 | C15: 岑松镇 | D15: 72.77 | E15: √ | F15: √ | H15: 1 | I15: 73.77
A16: 20230016 | B16: 雷英 | C16: 岑松镇 | D16: 74.34 | E16: √ | F16: √ | H16: 1 | I16: 75.34
A17: 20230017 | B17: 李安敏 | C17: 岑松镇 | D17: 73.38 | E17: √ | F17: √ | H17: 1 | I17: 74.38
A18: 20230018 | B18: 李海琴 | C18: 岑松镇 | D18: 74.18 | E18: √ | F18: √ | H18: 1 | I18: 75.18
A19: 20230019 | B19: 李秋英 | C19: 岑松镇 | D19: 75.92 | E19: √ | F19: √ | H19: 1 | I19: 76.92
A20: 20230020 | B20: 李树花 | C20: 岑松镇 | D20: 72.48 | F20: √ | H20: 0.5 | I20: 72.98
A21: 20230021 | B21: 李水英 | C21: 岑松镇 | D21: 75.2 | E21: √ | F21: √ | H21: 1 | I21: 76.2
A22: 20230022 | B22: 李婷 | C22: 岑松镇 | D22: 71.26 | E22: √ | F22: √ | H22: 1 | I22: 72.26
A23: 20230023 | B23: 李晓慧 | C23: 岑松镇 | D23: 75.06 | H23: 0 | I23: 75.06
A24: 20230024 | B24: 李艳 | C24: 岑松镇 | D24: 76.06 | E24: √ | F24: √ | H24: 1 | I24: 77.06
A25: 20230025 | B25: 李影 | C25: 岑松镇 | D25: 73.6 | H25: 0 | I25: 73.6
A26: 20230026 | B26: 李玉梅 | C26: 岑松镇 | D26: 75.8 | H26: 0 | I26: 75.8
A27: 20230027 | B27: 刘表妹 | C27: 岑松镇 | D27: 73.46 | E27: √ | F27: √ | H27: 1 | I27: 74.46
A28: 20230028 | B28: 刘柳仙 | C28: 岑松镇 | D28: 71.88 | H28: 0 | I28: 71.88
A29: 20230030 | B29: 刘幸福 | C29: 岑松镇 | D29: 75.54 | E29: √ | F29: √ | H29: 1 | I29: 76.54
A30: 20230031 | B30: 刘秀桃 | C30: 岑松镇 | D30: 73.3 | E30: √ | F30: √ | H30: 1 | I30: 74.3
A31: 20230032 | B31: 刘艳 | C31: 岑松镇 | D31: 73.55 | F31: √ | H31: 0.5 | I31: 74.05
A32: 20230033 | B32: 刘燕 | C32: 岑松镇 | D32: 75.72 | H32: 0 | I32: 75.72
A33: 20230034 | B33: 刘仰 | C33: 岑松镇 | D33: 73.98 | E33: √ | F33: √ | H33: 1 | I33: 74.98
A34: 20230035 | B34: 刘永梅 | C34: 岑松镇 | D34: 75.38 | E34: √ | F34: √ | H34: 1 | I34: 76.38
A35: 20230036 | B35: 龙慧婷 | C35: 岑松镇 | D35: 76.56 | E35: √ | F35: √ | H35: 1 | I35: 77.56
A36: 20230037 | B36: 龙继宇 | C36: 岑松镇 | D36: 73.76 | H36: 0 | I36: 73.76
A37: 20230038 | B37: 龙秋霞 | C37: 岑松镇 | D37: 75.86 | E37: √ | F37: √ | H37: 1 | I37: =D37+H37 -> 76.86
A38: 20230039 | B38: 龙太英 | C38: 岑松镇 | D38: 75.9 | H38: 0 | I38: 75.9
A39: 20230040 | B39: 龙媛 | C39: 岑松镇 | D39: 76.34 | E39: √ | F39: √ | H39: 1 | I39: 77.34
A40: 20230041 | B40: 陆梅琳 | C40: 岑松镇 | D40: 73.32 | E40: √ | F40: √ | H40: 1 | I40: 74.32
A41: 20230042 | B41: 陆明英 | C41: 岑松镇 | D41: 73.18 | E41: √ | F41: √ | H41: 1 | I41: 74.18
A42: 20230043 | B42: 陆思月 | C42: 岑松镇 | D42: 73.96 | E42: √ | H42: 0.5 | I42: 74.46
A43: 20230044 | B43: 陆应桂 | C43: 岑松镇 | D43: 74.83 | E43: √ | F43: √ | H43: 1 | I43: 75.83
A44: 20230045 | B44: 罗江红 | C44: 岑松镇 | D44: 73.32 | E44: √ | F44: √ | H44: 1 | I44: 74.32
A45: 20230046 | B45: 罗星 | C45: 岑松镇 | D45: 80.38 | E45: √ | F45: √ | H45: 1 | I45: 81.38
A46: 20230047 | B46: 马柳桂 | C46: 岑松镇 | D46: 55.4 | H46: 0 | I46: 55.4
A47: 20230048 | B47: 欧林芝 | C47: 岑松镇 | D47: 72.96 | E47: √ | F47: √ | H47: 1 | I47: 73.96
A48: 20230049 | B48: 欧啟俊 | C48: 岑松镇 | D48: 78.58 | E48: √ | F48: √ | H48: 1 | I48: 79.58
A49: 20230051 | B49: 欧秀丽 | C49: 岑松镇 | D49: 74.19 | E49: √ | F49: √ | H49: 1 | I49: 75.19
A50: 20230052 | B50: 欧雪梅 | C50: 岑松镇 | D50: 72.95 | F50: √ | H50: 0.5 | I50: 73.45
A51: 20230053 | B51: 潘红敏 | C51: 岑松镇 | D51: 71.05 | E51: √ | F51: √ | H51: 1 | I51: 72.05
A52: 20230054 | B52: 潘盛菊 | C52: 岑松镇 | D52: 76.4 | E52: √ | F52: √ | H52: 1 | I52: 77.4
A53: 20230055 | B53: 潘扬 | C53: 岑松镇 | D53: 73.8 | H53: 0 | I53: 73.8
A54: 20230057 | B54: 石琼 | C54: 岑松镇 | D54: 74.2 | F54: √ | H54: 0.5 | I54: 74.7
A55: 20230058 | B55: 舒海丽 | C55: 岑松镇 | D55: 83.2 | E55: √ | F55: √ | H55: 1 | I55: 84.2
A56: 20230060 | B56: 粟云 | C56: 岑松镇 | D56: 63.2 | E56: √ | F56: √ | H56: 1 | I56: 64.2
A57: 20230061 | B57: 邰秀敏 | C57: 岑松镇 | D57: 73.6 | E57: √ | F57: √ | H57: 1 | I57: 74.6
A58: 20230062 | B58: 唐晓燕 | C58: 岑松镇 | D58: 71.8 | E58: √ | F58: √ | H58: 1 | I58: 72.8
A59: 20230064 | B59: 田井兰 | C59: 岑松镇 | D59: 73 | F59: √ | H59: 0.5 | I59: 73.5
A60: 20230065 | B60: 田娟 | C60: 岑松镇 | D60: 75.8 | E60: √ | F60: √ | H60: 1 | I60: 76.8
A61: 20230066 | B61: 田维芊 | C61: 岑松镇 | D61: 78 | E61: √ | F61: √ | H61: 1 | I61: 79
A62: 20230067 | B62: 万佳 | C62: 岑松镇 | D62: 72.6 | H62: 0 | I62: 72.6
A63: 20230068 | B63: 万秀美 | C63: 岑松镇 | D63: 67.6 | H63: 0 | I63: 67.6
A64: 20230070 | B64: 万玉萍 | C64: 岑松镇 | D64: 69.4 | E64: √ | F64: √ | H64: 1 | I64: 70.4
A65: 20230071 | B65: 王定达 | C65: 岑松镇 | D65: 75.2 | E65: √ | F65: √ | H65: 1 | I65: 76.2
A66: 20230072 | B66: 王泽香 | C66: 岑松镇 | D66: 81.2 | E66: √ | F66: √ | H66: 1 | I66: 82.2
A67: 20230073 | B67: 韦光兰 | C67: 岑松镇 | D67: 65.8 | H67: 0 | I67: 65.8
A68: 20230074 | B68: 文琴 | C68: 岑松镇 | D68: 67 | E68: √ | F68: √ | H68: 1 | I68: 68
A69: 20230076 | B69: 吴昌玉 | C69: 岑松镇 | D69: 70.2 | E69: √ | F69: √ | H69: 1 | I69: =D69+H69 -> 71.2
A70: 20230077 | B70: 吴满春 | C70: 岑松镇 | D70: 71 | E70: √ | F70: √ | H70: 1 | I70: 72
A71: 20230079 | B71: 吴萍 | C71: 岑松镇 | D71: 74 | F71: √ | H71: 0.5 | I71: 74.5
A72: 20230080 | B72: 吴三妹 | C72: 岑松镇 | D72: 74.6 | E72: √ | F72: √ | H72: 1 | I72: 75.6
A73: 20230081 | B73: 吴沙沙 | C73: 岑松镇 | D73: 78.4 | E73: √ | F73: √ | H73: 1 | I73: 79.4
A74: 20230082 | B74: 吴兴玲 | C74: 岑松镇 | D74: 71.8 | E74: √ | F74: √ | H74: 1 | I74: 72.8
A75: 20230083 | B75: 夏飞飞 | C75: 岑松镇 | D75: 75.6 | E75: √ | F75: √ | H75: 1 | I75: 76.6
A76: 20230084 | B76: 谢雪怡 | C76: 岑松镇 | D76: 77 | E76: √ | F76: √ | H76: 1 | I76: 78
A77: 20230085 | B77: 熊朝梅 | C77: 岑松镇 | D77: 67.4 | E77: √ | F77: √ | H77: 1 | I77: 68.4
A78: 20230086 | B78: 杨光艳 | C78: 岑松镇 | D78: 68 | E78: √ | F78: √ | H78: 1 | I78: 69
A79: 20230087 | B79: 杨花红 | C79: 岑松镇 | D79: 77.6 | F79: √ | H79: 0.5 | I79: 78.1
A80: 20230088 | B80: 杨惠茹 | C80: 岑松镇 | D80: 71.4 | E80: √ | F80: √ | H80: 1 | I80: 72.4
A81: 20230089 | B81: 杨玲 | C81: 岑松镇 | D81: 78.6 | E81: √ | F81: √ | H81: 1 | I81: 79.6
A82: 20230090 | B82: 杨美芳 | C82: 岑松镇 | D82: 70 | E82: √ | F82: √ | H82: 1 | I82: 71
A83: 20230091 | B83: 杨琴红 | C83: 岑松镇 | D83: 70.6 | E83: √ | F83: √ | H83: 1 | I83: 71.6
A84: 20230093 | B84: 杨秀香 | C84: 岑松镇 | D84: 74 | H84: 0 | I84: 74
A85: 20230094 | B85: 杨秀园 | C85: 岑松镇 | D85: 69.5 | E85: √ | F85: √ | H85: 1 | I85: 70.5
A86: 20230095 | B86: 杨再巧 | C86: 岑松镇 | D86: 72.4 | E86: √ | F86: √ | H86: 1 | I86: 73.4
A87: 20230096 | B87: 姚霞 | C87: 岑松镇 | D87: 76.2 | E87: √ | F87: √ | H87: 1 | I87: 77.2
A88: 20230097 | B88: 张兰 | C88: 岑松镇 | D88: 79.6 | E88: √ | F88: √ | H88: 1 | I88: 80.6
A89: 20230098 | B89: 张世柳 | C89: 岑松镇 | D89: 77.8 | E89: √ | F89: √ | H89: 1 | I89: 78.8
A90: 20230100 | B90: 张小秀 | C90: 岑松镇 | D90: 72.8 | E90: √ | F90: √ | H90: 1 | I90: 73.8
A91: 20230101 | B91: 张秀花 | C91: 岑松镇 | D91: 70.2 | H91: 0 | I91: 70.2
A92: 20230102 | B92: 张瑜 | C92: 岑松镇 | D92: 78.2 | F92: √ | H92: 0.5 | I92: 78.7
A93: 20230103 | B93: 张泽 | C93: 岑松镇 | D93: 64.8 | E93: √ | F93: √ | H93: 1 | I93: 65.8
A94: 20230104 | B94: 周洁 | C94: 岑松镇 | D94: 75.2 | E94: √ | F94: √ | H94: 1 | I94: 76.2
A95: 20230105 | B95: 周秋洪 | C95: 岑松镇 | D95: 76.6 | E95: √ | F95: √ | H95: 1 | I95: 77.6
A96: 20230560 | B96: 吴芳娟 | C96: 岑松镇 | D96: 78.4 | E96: √ | F96: √ | H96: 1 | I96: 79.4
A97: 20230107 | B97: 曾令美 | C97: 革东镇 | D97: 73.8 | E97: √ | F97: √ | H97: 1 | I97: 74.8
A98: 20230108 | B98: 陈丽 | C98: 革东镇 | D98: 76.8 | H98: 0 | I98: 76.8
A99: 20230109 | B99: 陈敏 | C99: 革东镇 | D99: 79.2 | E99: √ | F99: √ | H99: 1 | I99: 80.2
A100: 20230110 | B100: 冯孜 | C100: 革东镇 | D100: 71 | E100: √ | F100: √ | H100: 1 | I100: 72
A101: 20230111 | B101: 郭季红 | C101: 革东镇 | D101: 68 | H101: 0 | I101: =D101+H101 -> 68
A102: 20230113 | B102: 何锡燕 | C102: 革东镇 | D102: 79 | E102: √ | F102: √ | H102: 1 | I102: 80
A103: 20230114 | B103: 黄翠芝 | C103: 革东镇 | D103: 63.4 | E103: √ | F103: √ | H103: 1 | I103: 64.4
A104: 20230115 | B104: 姜林堉 | C104: 革东镇 | D104: 80.6 | E104: √ | F104: √ | H104: 1 | I104: 81.6
A105: 20230117 | B105: 黎静 | C105: 革东镇 | D105: 75.8 | E105: √ | F105: √ | H105: 1 | I105: 76.8
A106: 20230118 | B106: 李成美 | C106: 革东镇 | D106: 78.8 | E106: √ | F106: √ | H106: 1 | I106: 79.8
A107: 20230119 | B107: 李妹英 | C107: 革东镇 | D107: 75.6 | E107: √ | F107: √ | H107: 1 | I107: 76.6
A108: 20230120 | B108: 刘彩云 | C108: 革东镇 | D108: 缺考
A109: 20230121 | B109: 刘冬梅 | C109: 革东镇 | D109: 78 | E109: √ | F109: √ | H109: 1 | I109: 79
A110: 20230123 | B110: 龙合银 | C110: 革东镇 | D110: 67.6 | H110: 0 | I110: 67.6
A111: 20230124 | B111: 陆菜勇 | C111: 革东镇 | D111: 75.2 | E111: √ | F111: √ | H111: 1 | I111: 76.2
A112: 20230125 | B112: 罗勋玲 | C112: 革东镇 | D112: 78 | E112: √ | F112: √ | H112: 1 | I112: 79
A113: 20230126 | B113: 聂芬 | C113: 革东镇 | D113: 74.4 | E113: √ | F113: √ | H113: 1 | I113: 75.4
A114: 20230127 | B114: 欧姣姣 | C114: 革东镇 | D114: 80.4 | E114: √ | F114: √ | H114: 1 | I114: 81.4
A115: 20230128 | B115: 欧美 | C115: 革东镇 | D115: 76.2 | E115: √ | F115: √ | H115: 1 | I115: 77.2
A116: 20230129 | B116: 欧习花 | C116: 革东镇 | D116: 69 | H116: 0 | I116: 69
A117: 20230130 | B117: 欧小姣 | C117: 革东镇 | D117: 74.4 | E117: √ | H117: 0.5 | I117: 74.9
A118: 20230131 | B118: 欧秀英 | C118: 革东镇 | D118: 79 | E118: √ | F118: √ | H118: 1 | I118: 80
A119: 20230132 | B119: 潘存兰 | C119: 革东镇 | D119: 75.6 | E119: √ | F119: √ | H119: 1 | I119: 76.6
A120: 20230133 | B120: 潘长江 | C120: 革东镇 | D120: 72.4 | F120: √ | H120: 0.5 | I120: 72.9
A121: 20230134 | B121: 彭仁柳 | C121: 革东镇 | D121: 81 | E121: √ | F121: √ | H121: 1 | I121: 82
A122: 20230135 | B122: 彭雪佳 | C122: 革东镇 | D122: 74.4 | E122: √ | F122: √ | H122: 1 | I122: 75.4
A123: 20230136 | B123: 任雨婷 | C123: 革东镇 | D123: 74.6 | H123: 0 | I123: 74.6
A124: 20230137 | B124: 唐仁杰 | C124: 革东镇 | D124: 76.2 | H124: 0 | I124: 76.2
A125: 20230138 | B125: 滕明琴 | C125: 革东镇 | D125: 68 | H125: 0 | I125: 68
A126: 20230139 | B126: 田红 | C126: 革东镇 | D126: 75.8 | E126: √ | F126: √ | H126: 1 | I126: 76.8
A127: 20230140 | B127: 田美云 | C127: 革东镇 | D127: 79.6 | E127: √ | F127: √ | H127: 1 | I127: 80.6
A128: 20230141 | B128: 万梅花 | C128: 革东镇 | D128: 82.6 | E128: √ | F128: √ | H128: 1 | I128: 83.6
A129: 20230142 | B129: 万文花 | C129: 革东镇 | D129: 66.6 | E129: √ | F129: √ | H129: 1 | I129: 67.6
A130: 20230143 | B130: 王天梅 | C130: 革东镇 | D130: 81 | E130: √ | F130: √ | H130: 1 | I130: 82
A131: 20230144 | B131: 王英 | C131: 革东镇 | D131: 79.2 | E131: √ | F131: √ | H131: 1 | I131: 80.2
A132: 20230145 | B132: 王玉良 | C132: 革东镇 | D132: 77 | E132: √ | F132: √ | H132: 1 | I132: 78
A133: 20230146 | B133: 吴昌兰 | C133: 革东镇 | D133: 63 | F133: √ | H133: 0.5 | I133: =D133+H133 -> 63.5
A134: 20230147 | B134: 吴朝芝 | C134: 革东镇 | D134: 75 | E134: √ | F134: √ | H134: 1 | I134: 76
A135: 20230148 | B135: 吴定英 | C135: 革东镇 | D135: 71.2 | F135: √ | H135: 0.5 | I135: 71.7
A136: 20230149 | B136: 吴海燕 | C136: 革东镇 | D136: 78 | E136: √ | F136: √ | H136: 1 | I136: 79
A137: 20230151 | B137: 吴妹花 | C137: 革东镇 | D137: 82 | E137: √ | F137: √ | H137: 1 | I137: 83
A138: 20230152 | B138: 吴文平 | C138: 革东镇 | D138: 78 | E138: √ | F138: √ | H138: 1 | I138: 79
A139: 20230153 | B139: 吴玉桃 | C139: 革东镇 | D139: 82.8 | E139: √ | F139: √ | H139: 1 | I139: 83.8
A140: 20230156 | B140: 杨桂香 | C140: 革东镇 | D140: 78.4 | H140: 0 | I140: 78.4
A141: 20230157 | B141: 杨国珍 | C141: 革东镇 | D141: 81 | E141: √ | F141: √ | H141: 1 | I141: 82
A142: 20230158 | B142: 杨红琴 | C142: 革东镇 | D142: 66.2 | H142: 0 | I142: 66.2
A143: 20230159 | B143: 杨慧英 | C143: 革东镇 | D143: 放弃
A144: 20230161 | B144: 杨金桂 | C144: 革东镇 | D144: 74.2 | H144: 0 | I144: 74.2
A145: 20230162 | B145: 杨兰艳 | C145: 革东镇 | D145: 79.8 | E145: √ | F145: √ | H145: 1 | I145: 80.8
A146: 20230163 | B146: 杨胜芳 | C146: 革东镇 | D146: 71.2 | E146: √ | F146: √ | H146: 1 | I146: 72.2
A147: 20230164 | B147: 杨秀兰 | C147: 革东镇 | D147: 78 | E147: √ | F147: √ | H147: 1 | I147: 79
A148: 20230165 | B148: 杨秀英 | C148: 革东镇 | D148: 77.8 | E148: √ | F148: √ | H148: 1 | I148: 78.8
A149: 20230167 | B149: 杨雪梅 | C149: 革东镇 | D149: 76.8 | H149: 0 | I149: 76.8
A150: 20230168 | B150: 杨燕 | C150: 革东镇 | D150: 81.2 | E150: √ | F150: √ | H150: 1 | I150: 82.2
A151: 20230169 | B151: 杨政英 | C151: 革东镇 | D151: 75.4 | E151: √ | F151: √ | H151: 1 | I151: 76.4
A152: 20230170 | B152: 张春美 | C152: 革东镇 | D152: 77.4 | E152: √ | F152: √ | H152: 1 | I152: 78.4
A153: 20230173 | B153: 张燕 | C153: 革东镇 | D153: 69 | H153: 0 | I153: 69
A154: 20230174 | B154: 张翊 | C154: 革东镇 | D154: 77.6 | H154: 0 | I154: 77.6
A155: 20230175 | B155: 周根芝 | C155: 革东镇 | D155: 76.6 | E155: √ | F155: √ | H155: 1 | I155: 77.6
A156: 20230834 | B156: 吴庭婷 | C156: 革东镇 | D156: 79.8 | E156: √ | F156: √ | H156: 1 | I156: 80.8
A157: 20230176 | B157: 陶德菲 | C157: 革东镇 | D157: 76.8 | E157: √ | F157: √ | H157: 1 | I157: 77.8
A158: 20230177 | B158: 陈娇 | C158: 南哨镇 | D158: 68.8 | H158: 0 | I158: 68.8
A159: 20230178 | B159: 陈玉 | C159: 南哨镇 | D159: 74.2 | E159: √ | F159: √ | H159: 1 | I159: 75.2
A160: 20230179 | B160: 黄飘 | C160: 南哨镇 | D160: 84.6 | F160: √ | H160: 0.5 | I160: =D160+H160 -> 85.1
A161: 20230180 | B161: 蒋维洁 | C161: 南哨镇 | D161: 73.6 | H161: 0 | I161: 73.6
A162: 20230181 | B162: 金贵兴 | C162: 南哨镇 | D162: 79 | E162: √ | F162: √ | H162: 1 | I162: 80
A163: 20230182 | B163: 李露云 | C163: 南哨镇 | D163: 68 | E163: √ | F163: √ | H163: 1 | I163: 69
A164: 20230183 | B164: 李琴 | C164: 南哨镇 | D164: 73 | H164: 0 | I164: 73
A165: 20230184 | B165: 李秀云 | C165: 南哨镇 | D165: 73.6 | F165: √ | H165: 0.5 | I165: 74.1
A166: 20230185 | B166: 梁正芳 | C166: 南哨镇 | D166: 83.2 | E166: √ | F166: √ | H166: 1 | I166: 84.2
A167: 20230186 | B167: 龙名月 | C167: 南哨镇 | D167: 74.2 | E167: √ | F167: √ | H167: 1 | I167: 75.2
A168: 20230187 | B168: 潘应红 | C168: 南哨镇 | D168: 72.6 | E168: √ | F168: √ | H168: 1 | I168: 73.6
A169: 20230188 | B169: 盘金花 | C169: 南哨镇 | D169: 76.4 | E169: √ | F169: √ | H169: 1 | I169: 77.4
A170: 20230189 | B170: 苏利荣 | C170: 南哨镇 | D170: 79 | F170: √ | H170: 0.5 | I170: 79.5
A171: 20230190 | B171: 覃朝娟 | C171: 南哨镇 | D171: 放弃
A172: 20230191 | B172: 王杰 | C172: 南哨镇 | D172: 75.8 | H172: 0 | I172: 75.8
A173: 20230192 | B173: 王莉莉 | C173: 南哨镇 | D173: 67.8 | E173: √ | F173: √ | H173: 1 | I173: 68.8
A174: 20230193 | B174: 王蓉 | C174: 南哨镇 | D174: 76 | E174: √ | F174: √ | H174: 1 | I174: 77
A175: 20230194 | B175: 吴才江 | C175: 南哨镇 | D175: 76.2 | E175: √ | F175: √ | H175: 1 | I175: 77.2
A176: 20230195 | B176: 吴国庆 | C176: 南哨镇 | D176: 76.4 | H176: 0 | I176: 76.4
A177: 20230196 | B177: 吴国荣 | C177: 南哨镇 | D177: 79.2 | E177: √ | F177: √ | H177: 1 | I177: 80.2
A178: 20230197 | B178: 夏梅花 | C178: 南哨镇 | D178: 85 | E178: √ | F178: √ | H178: 1 | I178: 86
A179: 20230199 | B179: 杨高当 | C179: 南哨镇 | D179: 75 | E179: √ | F179: √ | H179: 1 | I179: 76
A180: 20230200 | B180: 杨树红 | C180: 南哨镇 | D180: 79 | E180: √ | F180: √ | H180: 1 | I180: 80
A181: 20230202 | B181: 杨雪艳 | C181: 南哨镇 | D181: 71 | H181: 0 | I181: 71
A182: 20230204 | B182: 张敏 | C182: 南哨镇 | D182: 72.6 | E182: √ | F182: √ | H182: 1 | I182: 73.6
A183: 20230205 | B183: 张巧 | C183: 南哨镇 | D183: 80 | F183: √ | H183: 0.5 | I183: 80.5
A184: 20230206 | B184: 韩庆 | C184: 南明镇 | D184: 69 | H184: 0 | I184: 69
A185: 20230208 | B185: 姜志美 | C185: 南明镇 | D185: 80.8 | H185: 0 | I185: 80.8
A186: 20230209 | B186: 姜智慧 | C186: 南明镇 | D186: 72.8 | H186: 0 | I186: 72.8
A187: 20230210 | B187: 李书庆 | C187: 南明镇 | D187: 86.8 | H187: 0 | I187: 86.8
A188: 20230211 | B188: 李应珍 | C188: 南明镇 | D188: 83 | E188: √ | F188: √ | H188: 1 | I188: 84
A189: 20230212 | B189: 陆承媛 | C189: 南明镇 | D189: 77.8 | H189: 0 | I189: 77.8
A190: 20230213 | B190: 蒙雨瑄 | C190: 南明镇 | D190: 74.6 | E190: √ | F190: √ | H190: 1 | I190: 75.6
A191: 20230214 | B191: 欧啟凤 | C191: 南明镇 | D191: 75.8 | H191: 0 | I191: 75.8
A192: 20230216 | B192: 潘明兰 | C192: 南明镇 | D192: 80.8 | E192: √ | F192: √ | H192: 1 | I192: 81.8
A193: 20230217 | B193: 彭珍莉 | C193: 南明镇 | D193: 81 | E193: √ | F193: √ | H193: 1 | I193: 82
A194: 20230218 | B194: 石梅英 | C194: 南明镇 | D194: 68.4 | F194: √ | H194: 0.5 | I194: 68.9
A195: 20230219 | B195: 田玉梅 | C195: 南明镇 | D195: 85.6 | E195: √ | F195: √ | H195: 1 | I195: 86.6
A196: 20230220 | B196: 万芹合 | C196: 南明镇 | D196: 放弃
A197: 20230221 | B197: 万小升 | C197: 南明镇 | D197: 77 | E197: √ | F197: √ | H197: 1 | I197: 78
A198: 20230222 | B198: 肖祥宏 | C198: 南明镇 | D198: 78.2 | H198: 0 | I198: 78.2
A199: 20230223 | B199: 杨春香 | C199: 南明镇 | D199: 68.8 | E199: √ | F199: √ | H199: 1 | I199: 69.8
A200: 20230224 | B200: 杨丽玲 | C200: 南明镇 | D200: 74.6 | E200: √ | F200: √ | H200: 1 | I200: 75.6
... 601 more rows
